fUSD/lending_fUSD_20250617
["ID","MTS","AMOUNT","RATE_DAILY","PERIOD"]
[366224644,1750133447408,-575.35,0.00016926,2]
[366224645,1750133447418,-490.0,0.00016926,2]
[366224646,1750133447428,-490.0,0.00016926,2]
[366224647,1750133447438,-569.85694142,0.00016926,2]
[366224648,1750133447448,-490.0,0.00016926,2]
[366224649,1750133447458,-490.0,0.00016926,2]
[366224650,1750133447468,-490.0,0.00016926,2]
[366224651,1750133447478,-490.0,0.00016926,2]
[366224652,1750133447488,-2367.88,0.00016926,2]
[366224653,1750133447498,-490.0,0.00016926,2]
[366224654,1750133447508,-490.0,0.00016926,2]
[366224655,1750133447518,-490.0,0.00016926,2]
[366224656,1750133447529,-490.0,0.00016926,2]
[366224657,1750133447539,-547.13981287,0.00016926,2]
[366224658,1750133447550,-627.16,0.00016926,2]
[366224659,1750133447560,-839.12,0.00016926,2]
[366224660,1750133447570,-490.0,0.00016926,2]
[366224661,1750133447581,-490.0,0.00016926,2]
[366224662,1750133447591,-490.0,0.00016926,2]
[366224663,1750133447601,-490.0,0.00016926,2]
[366224664,1750133447611,-490.0,0.00016926,2]
[366224665,1750133447622,-490.0,0.00016926,2]
[366224666,1750133447631,-490.0,0.00016926,2]
[366224667,1750133447641,-490.0,0.00016926,2]
[366224668,1750133447651,-490.0,0.00016926,2]
[366224669,1750133447661,-490.0,0.00016926,2]
[366224670,1750133447671,-5157.93,0.00016926,2]
[366224671,1750133447681,-490.0,0.00016926,2]
[366224672,1750133447691,-490.0,0.00016926,2]
[366224673,1750133447701,-490.0,0.00016926,2]
[366224674,1750133447711,-761.92,0.00016926,2]
[366224675,1750133447722,-490.0,0.00016926,2]
[366224676,1750133447732,-490.0,0.00016926,2]
[366224677,1750133447742,-615.0,0.00016926,2]
[366224678,1750133447752,-490.0,0.00016926,2]
[366224679,1750133447762,-490.0,0.00016926,2]
[366224680,1750133447772,-784.3,0.00016926,2]
[366224681,1750133447781,-490.0,0.00016926,2]
[366224682,1750133447791,-490.0,0.00016926,2]
[366224683,1750133447801,-2411.81,0.00016926,2]
[366224684,1750133447811,-626.79,0.00016926,2]
[366224685,1750133447822,-490.0,0.00016926,2]
[366224686,1750133447832,-490.0,0.00016926,2]
[366224687,1750133447841,-490.0,0.00016926,2]
[366224688,1750133447851,-490.0,0.00016926,2]
[366224689,1750133447861,-490.0,0.00016926,2]
[366224690,1750133447871,-490.0,0.00016927,2]
[366224691,1750133447880,-526.57,0.00016927,2]
[366224692,1750133447890,-383.4903736,0.00016927,2]
[366224693,1750133447900,-490.0,0.00016927,2]
[366224694,1750133447910,-490.0,0.00016927,2]
[366224695,1750133447920,-490.0,0.00016927,2]
[366224696,1750133447930,-550.18,0.00016927,2]
[366224697,1750133447940,-490.0,0.00016927,2]
[366224698,1750133447950,-490.0,0.00016927,2]
[366224699,1750133447960,-490.0,0.00016927,2]
[366224700,1750133447970,-490.0,0.00016927,2]
[366224701,1750133447983,-490.0,0.00016927,2]
[366224702,1750133447993,-490.0,0.00016927,2]
[366224703,1750133448003,-151.0,0.00016927,2]
[366224704,1750133448013,-151.0,0.00016927,2]
[366224705,1750133448024,-151.0,0.00016928,2]
[366224706,1750133448034,-151.0,0.00016928,2]
[366224707,1750133448045,-151.0,0.00016928,2]
[366224708,1750133448055,-202.408034,0.00016928,2]
[366224709,1750133448065,-202.408034,0.00016928,2]
[366224710,1750133448076,-151.0,0.00016928,2]
[366224711,1750133448087,-151.0,0.00016928,2]
[366224712,1750133448097,-151.0,0.00016928,2]
[366224713,1750133448107,-151.0,0.00016928,2]
[366224714,1750133448118,-151.0,0.00016928,2]
[366224715,1750133448128,-151.0,0.00016928,2]
[366224716,1750133448138,-388.486072,0.00016928,2]
[366224717,1750133448148,-388.486072,0.00016928,2]
[366224718,1750133448159,-151.705939,0.00016928,2]
[366224719,1750133448169,-151.0,0.00016928,2]
[366224720,1750133448179,-152.075943,0.00016928,2]
[366224721,1750133448190,-151.0,0.00016928,2]
[366224722,1750133448200,-151.0,0.00016928,2]
[366224723,1750133448215,-151.0,0.00016928,2]
[366224724,1750133448224,-151.0,0.00016928,2]
[366224725,1750133448235,-151.0,0.00016928,2]
[366224726,1750133448245,-157.935207,0.00016928,2]
[366224727,1750133448255,-151.0,0.00016928,2]
[366224728,1750133448265,-151.0,0.00016928,2]
[366224729,1750133448275,-172.079187,0.00016928,2]
[366224730,1750133448284,-172.079187,0.00016928,2]
[366224731,1750133448296,-150.0,0.00016937,2]
[366224732,1750133448306,-152.61736921,0.00016942,2]
[366224733,1750133448316,-184.16464562,0.00016942,2]
[366224734,1750133448326,-500.0,0.00016942,2]
[366224735,1750133448335,-150.0,0.00016942,2]
[366224736,1750133448347,-150.0,0.00016962,2]
[366224737,1750133448357,-376.728929,0.00016962,2]
[366224738,1750133448368,-376.728929,0.00016963,2]
[366224739,1750133448379,-153.001499,0.00016963,2]
[366224740,1750133448388,-152.422688,0.00016963,2]
[366224741,1750133448398,-151.0,0.00016963,2]
[366224742,1750133448408,-151.0,0.00016963,2]
[366224743,1750133448418,-151.0,0.00016963,2]
[366224744,1750133448428,-151.0,0.00016963,2]
[366224745,1750133448438,-151.0,0.00016963,2]
[366224746,1750133448449,-151.0,0.00016963,2]
[366224747,1750133448460,-151.0,0.00016963,2]
[366224748,1750133448470,-172.079187,0.00016963,2]
[366224749,1750133448480,-172.079187,0.00016963,2]
[366224750,1750133448490,-517.09856577,0.00016969,2]
[366224751,1750133448501,-500.0,0.00016973,2]
[366224752,1750133448511,-500.0,0.00016973,2]
[366224753,1750133448523,-500.0,0.00016973,2]
[366224754,1750133448532,-500.0,0.00016973,2]
[366224755,1750133448542,-151.0,0.00016973,2]
[366224756,1750133448552,-151.0,0.00016973,2]
[366224757,1750133448562,-1000.0,0.0001698,2]
[366224758,1750133448572,-151.0,0.00016986,2]
[366224759,1750133448582,-151.0,0.00016986,2]
[366224760,1750133448593,-159.0385517,0.00016986,2]
[366224761,1750133448603,-150.0,0.00016986,2]
[366224762,1750133448614,-154.34813371,0.00016986,2]
[366224763,1750133448624,-151.45471007,0.00016986,2]
[366224764,1750133448633,-155.58308439,0.00016986,2]
[366224765,1750133448643,-290.11724628,0.00016986,2]
[366224766,1750133448653,-150.00000001,0.00016986,2]
[366224767,1750133448663,-1143.48,0.00016989,2]
[366224768,1750133448674,-500.0,0.00016989,2]
[366224769,1750133448684,-500.0,0.00016989,2]
[366224770,1750133448693,-500.0,0.00016989,2]
[366224771,1750133448703,-1000.0,0.00016989,2]
[366224772,1750133448713,-1000.0,0.00016989,2]
[366224773,1750133448723,-500.0,0.00016989,2]
[366224774,1750133448733,-168.0,0.00016995,2]
[366224775,1750133448742,-336.57654589,0.00016998,2]
[366224776,1750133448752,-221.530048,0.00016998,2]
[366224777,1750133448762,-221.530048,0.00016998,2]
[366224778,1750133448772,-165.110782,0.00016998,2]
[366224779,1750133448782,-151.0,0.00016998,2]
[366224780,1750133448792,-2411.56,0.00016998,2]
[366224781,1750133448802,-151.0,0.00016998,2]
[366224782,1750133448811,-151.0,0.00016998,2]
[366224783,1750133448821,-500.0,0.00016998,2]
[366224784,1750133448831,-151.0,0.00016998,2]
[366224785,1750133448840,-151.0,0.00016998,2]
[366224786,1750133448849,-229.179422,0.00016998,2]
[366224787,1750133448859,-229.179422,0.00016998,2]
[366224788,1750133448868,-222.941323,0.00016998,2]
[366224789,1750133448878,-151.0,0.00016998,2]
[366224790,1750133448887,-278.545111,0.00016998,2]
[366224791,1750133448897,-151.0,0.00016998,2]
[366224792,1750133448907,-151.47662,0.00016998,2]
[366224793,1750133448917,-151.0,0.00016998,2]
[366224794,1750133448926,-151.0,0.00016998,2]
[366224795,1750133448936,-3775.601455,0.00016998,2]
[366224796,1750133448946,-3775.601455,0.00016998,2]
[366224797,1750133448955,-152.55298,0.00016998,2]
[366224798,1750133448965,-151.0,0.00016998,2]
[366224799,1750133448976,-152.55298,0.00016998,2]
[366224800,1750133448985,-151.0,0.00016998,2]
[366224801,1750133448995,-151.0,0.00016998,2]
[366224802,1750133449005,-151.0,0.00016998,2]
[366224803,1750133449015,-151.0,0.00016998,2]
[366224804,1750133449025,-151.0,0.00016998,2]
[366224805,1750133449034,-151.0,0.00016998,2]
[366224806,1750133449044,-151.0,0.00016998,2]
[366224807,1750133449053,-151.0,0.00016998,2]
[366224808,1750133449062,-151.0,0.00016999,2]
[366224809,1750133449072,-151.0,0.00016999,2]
[366224810,1750133449082,-151.0,0.00016999,2]
[366224811,1750133449092,-151.0,0.00016999,2]
[366224812,1750133449102,-151.0,0.00016999,2]
[366224813,1750133449112,-151.0,0.00016999,2]
[366224814,1750133449122,-151.0,0.00016999,2]
[366224815,1750133449131,-151.928994,0.00016999,2]
[366224816,1750133449141,-376.728929,0.00016999,2]
[366224817,1750133449150,-151.0,0.00016999,2]
[366224818,1750133449160,-151.0,0.00016999,2]
[366224819,1750133449170,-151.0,0.00016999,2]
[366224820,1750133449180,-151.0,0.00016999,2]
[366224821,1750133449190,-151.386745,0.00016999,2]
[366224822,1750133449200,-151.0,0.00016999,2]
[366224823,1750133449212,-151.0,0.00016999,2]
[366224824,1750133449223,-202.408034,0.00016999,2]
[366224825,1750133449233,-202.408034,0.00016999,2]
[366224826,1750133449242,-675.54586523,0.00016999,2]
[366224827,1750133449253,-151.0,0.00016999,2]
[366224828,1750133449263,-151.0,0.00016999,2]
[366224829,1750133449272,-151.0,0.00016999,2]
[366224830,1750133449282,-151.0,0.00016999,2]
[366224831,1750133449292,-388.486072,0.00016999,2]
[366224832,1750133449302,-388.486072,0.00016999,2]
[366224833,1750133449311,-172.079187,0.00016999,2]
[366224834,1750133449320,-172.079187,0.00016999,2]
[366224835,1750133449330,-151.0,0.00016999,2]
[366224836,1750133449340,-152.406935,0.00016999,2]
[366224837,1750133449350,-151.0,0.00016999,2]
[366224838,1750133449359,-151.0,0.00016999,2]
[366224839,1750133449369,-151.0,0.00016999,2]
[366224840,1750133449379,-151.0,0.00016999,2]
[366224841,1750133449389,-151.0,0.00016999,2]
[366224842,1750133449398,-151.0,0.00016999,2]
[366224843,1750133449408,-151.0,0.00016999,2]
[366224844,1750133449418,-151.0,0.00016999,2]
[366224845,1750133449429,-151.0,0.00016999,2]
[366224846,1750133449439,-1208.834574,0.00016999,2]
[366224847,1750133449448,-1208.834574,0.00016999,2]
[366224848,1750133449458,-437.840429,0.00016999,2]
[366224849,1750133449467,-437.840429,0.00016999,2]
[366224850,1750133449477,-151.0,0.00016999,2]
[366224851,1750133449487,-151.0,0.00016999,2]
[366224852,1750133449496,-151.0,0.00016999,2]
[366224853,1750133449518,-151.0,0.00016999,2]
[366224854,1750133449529,-151.0,0.00016999,2]
[366224855,1750133449539,-151.0,0.00016999,2]
[366224856,1750133449548,-151.0,0.00016999,2]
[366224857,1750133449558,-151.0,0.00016999,2]
[366224858,1750133449568,-228.39541,0.00016999,2]
[366224859,1750133449579,-228.39541,0.00016999,2]
[366224860,1750133449589,-151.0,0.00016999,2]
[366224861,1750133449598,-151.0,0.00016999,2]
[366224862,1750133449609,-305.90665109,0.00016999,2]
[366224863,1750133449619,-151.0,0.00016999,2]
[366224864,1750133449629,-151.0,0.00016999,2]
[366224865,1750133449640,-151.0,0.00016999,2]
[366224866,1750133449649,-151.0,0.00016999,2]
[366224867,1750133449659,-151.0,0.00016999,2]
[366224868,1750133449669,-151.0,0.00016999,2]
[366224869,1750133449678,-151.0,0.00016999,2]
[366224870,1750133449688,-151.0,0.00016999,2]
[366224871,1750133449699,-287.071758,0.00016999,2]
[366224872,1750133449708,-151.0,0.00016999,2]
[366224873,1750133449718,-151.0,0.00016999,2]
[366224874,1750133449727,-151.0,0.00016999,2]
[366224875,1750133449738,-151.0,0.00016999,2]
[366224876,1750133449747,-219.92,0.00016999,2]
[366224877,1750133449756,-2411.56,0.00016999,2]
[366224878,1750133449766,-2411.56,0.00016999,2]
[366224879,1750133449775,-2411.56,0.00016999,2]
[366224880,1750133449785,-2411.56,0.00016999,2]
[366224881,1750133449795,-2411.56,0.00016999,2]
[366224882,1750133449805,-2411.56,0.00016999,2]
[366224883,1750133449815,-2411.56,0.00016999,2]
[366224884,1750133449825,-2411.56,0.00016999,2]
[366224885,1750133449835,-2411.56,0.00016999,2]
[366224886,1750133449845,-2411.56,0.00016999,2]
[366224887,1750133449854,-2411.56,0.00016999,2]
[366224888,1750133449864,-2411.56,0.00016999,2]
[366224889,1750133449874,-2411.56,0.00016999,2]
[366224890,1750133449883,-2411.56,0.00016999,2]
[366224891,1750133449894,-2411.56,0.00016999,2]
[366224892,1750133449904,-2411.56,0.00016999,2]
[366224893,1750133449915,-1332.76880032,0.00016999,2]
[366224894,1750133450108,-1078.79119968,0.00016999,2]
[366224895,1750133450118,-1211.41076339,0.00016999,2]
[366224896,1750133451484,200.0,0.00014787,2]
[366224898,1750133919238,254.79,0.00013699,2]
[366224899,1750133951812,250.0,0.00015,2]
[366224900,1750134131852,202.0,0.00015416,2]
[366224901,1750134405845,154.037,0.0001549,2]
[366224902,1750134492021,202.0,0.00014966,2]
[366224907,1750134509569,252.1242234,0.00024657,120]
[366224917,1750134631894,-202.0,0.00015529,2]
[366224918,1750134631904,-297.59,0.00015711,2]
[366224919,1750134631914,-95.108,0.00015876,2]
[366224920,1750134631949,-579.978432,0.00015876,2]
[366224921,1750134632113,-324.913568,0.00015876,2]
[366224922,1750134632122,-305.75603233,0.00015883,2]
[366224923,1750134632134,-360.24396767,0.00015883,2]
[366224924,1750134632144,-300.0,0.00015999,2]
[366224925,1750134632154,-1200.0,0.00015999,2]
[366224926,1750134632164,-1000.0,0.00016,4]
[366224927,1750134632174,-1102.92,0.00016,2]
[366224928,1750134632184,-1102.92,0.00016,2]
[366224929,1750134632194,-1102.92,0.00016,2]
[366224930,1750134632205,-1102.92,0.00016,2]
[366224931,1750134632214,-1102.92,0.00016,2]
[366224932,1750134632224,-200.06,0.00016,2]
[366224933,1750134632234,-151.0,0.0001609,2]
[366224934,1750134632244,-207.4,0.0001609,2]
[366224935,1750134632253,-202.0,0.00016092,3]
[366224936,1750134632263,-2339.57700579,0.000161,2]
[366224937,1750134632273,-2339.5770056,0.000161,2]
[366224938,1750134632283,-2339.5770056,0.000161,2]
[366224939,1750134632292,-2339.5770056,0.000161,2]
[366224940,1750134632302,-2339.5770056,0.000161,2]
[366224941,1750134632311,-2339.5770056,0.000161,2]
[366224942,1750134632321,-813.88842002,0.00016107,2]
[366224964,1750134638013,-945.99458256,0.00016107,2]
[366224965,1750134638125,-579.69400302,0.00016107,2]
[366224966,1750134638135,-2339.5770056,0.00016141,2]
[366224967,1750134638146,-500.0,0.00016164,2]
[366224968,1750134638156,-942.68022642,0.00016176,2]
[366224969,1750134638168,-1021.34364574,0.00016176,2]
[366224970,1750134638180,-375.55313344,0.00016176,2]
[366224972,1750134638190,-2339.5770056,0.0001621,2]
[366224974,1750134638200,-207.99339446,0.0001622,2]
[366224976,1750134638209,-31.66180533,0.00016245,2]
[366224978,1750134638221,-2307.91520027,0.00016245,2]
[366224980,1750134638232,-500.0,0.00016247,2]
[366224982,1750134638242,-351.07260652,0.00016279,2]
[366224985,1750134638254,-1988.50439908,0.00016279,2]
[366224987,1750134638265,-2339.5770056,0.00016314,2]
[366224989,1750134638275,-151.7386582,0.00016317,2]
[366224991,1750134638285,-2339.5770056,0.00016348,2]
[366224993,1750134638296,-151.7386582,0.00016382,2]
[366224995,1750134638306,-2339.5770056,0.00016383,2]
[366224997,1750134638315,-5084.47986991,0.000164,2]
[366225149,1750134639996,-2101.81738377,0.000164,2]
[366225171,1750134643038,-486.22110794,0.000164,2]
[366225172,1750134643148,-32883.12757,0.000164,2]
[366225173,1750134643161,-13128.70487807,0.000164,2]
[366225174,1750134643174,-587.84705437,0.000164,2]
[366225187,1750134646617,-893.61718572,0.000164,2]
[366225189,1750134671770,201.0,0.00014966,2]
[366225191,1750134701390,203.0,0.00014966,2]
[366225193,1750134761645,202.0,0.00014966,2]
[366225194,1750134883780,242.05,0.00013699,2]
[366225195,1750135135186,162.81,0.00015203,2]
[366225201,1750135208111,1583.9,0.00015173,2]
[366225202,1750135208324,1583.9,0.00015177,2]
[366225203,1750135208510,1583.9,0.00015181,2]
[366225204,1750135208714,1583.9,0.00015185,2]
[366225205,1750135208915,1583.9,0.00015189,2]
[366225206,1750135209115,1583.9,0.00015193,2]
[366225207,1750135209345,1583.9,0.00015197,2]
[366225208,1750135209900,1583.9,0.00015201,2]
[366225209,1750135209945,1583.9,0.00015205,2]
[366225210,1750135209989,1583.9,0.00015209,2]
[366225211,1750135210171,1583.9,0.00015213,2]
[366225212,1750135210370,1583.9,0.00015217,2]
[366225213,1750135210562,1509.23,0.00015221,2]
[366225214,1750135210591,74.67,0.00015221,2]
[366225215,1750135210767,1583.9,0.00015225,2]
[366225216,1750135211179,1583.9,0.00015229,2]
[366225217,1750135211584,1583.9,0.00015233,2]
[366225218,1750135211788,1583.9,0.00015237,2]
[366225219,1750135212183,1583.9,0.00015241,2]
[366225220,1750135212222,200.0,0.00014655,2]
[366225221,1750135212275,1583.9,0.00015245,2]
[366225222,1750135212333,200.0,0.00015132,2]
[366225223,1750135212432,1583.9,0.00015249,2]
[366225224,1750135249079,1208.16,0.00015175,2]
[366225225,1750135260381,500.0,0.00015068,2]
[366225226,1750135283365,23900.0,0.0001519,2]
[366225227,1750135298930,666.0,0.00015227,2]
[366225228,1750135425186,1612.29,0.00015423,2]
[366225229,1750135482518,500.0,0.00015068,2]
[366225230,1750135501118,1710.24,0.00015376,2]
[366225231,1750135506922,150.0,0.00015288,2]
[366225232,1750135506986,150.0,0.00015288,2]
[366225233,1750135507039,150.0,0.00015334,2]
[366225234,1750135507098,150.0,0.00015379,2]
[366225235,1750135507197,150.0,0.00015425,2]
[366225236,1750135507261,150.0,0.00015471,2]
[366225237,1750135514994,150.0,0.00015288,2]
[366225238,1750135516322,150.0,0.00015288,2]
[366225239,1750135523717,150.0,0.00015288,2]
[366225240,1750135571806,200.0,0.0001461,2]
[366225241,1750135572124,200.0,0.00015098,2]
[366225242,1750135575865,344.62669169,0.00015463,2]
[366225243,1750135652884,476.0,0.00015,7]
[366225244,1750135679570,336.38,0.00015257,2]
[366225246,1750135702158,500.0,0.00015068,2]
[366225247,1750135739975,1841.6049622,0.000246,120]
[366225249,1750135766031,250.0,0.00015,2]
[366225254,1750135832324,-150.0,0.00015517,2]
[366225255,1750135832334,-150.0,0.00015563,2]
[366225256,1750135832346,-218.0,0.0001557,2]
[366225257,1750135832356,-150.0,0.00015571,2]
[366225258,1750135832366,-200.0,0.00015586,3]
[366225259,1750135832376,-150.0,0.00015609,2]
[366225260,1750135832387,-150.0,0.00015655,2]
[366225261,1750135832397,-207.68,0.00015662,2]
[366225262,1750135832409,-870.50334465,0.00015699,2]
[366225275,1750135839481,30423.52,0.00015184,2]
[366225278,1750135840205,-129.49665535,0.00015699,2]
[366225279,1750135840280,-150.0,0.00015701,2]
[366225280,1750135840294,-300.0,0.00015726,2]
[366225281,1750135840303,-458.30951517,0.00015726,2]
[366225282,1750135840414,-375.712,0.00015726,2]
[366225283,1750135840470,-365.97848483,0.00015726,2]
[366225284,1750135840480,-742.87,0.00015727,2]
[366225285,1750135840490,-3167.82,0.00015727,2]
[366225286,1750135840499,-7095.03,0.00015727,2]
[366225287,1750135840508,-250.0,0.00015727,2]
[366225288,1750135840518,-610.0,0.00015727,2]
[366225289,1750135840528,-2709.11,0.00015727,2]
[366225290,1750135840538,-150.0,0.00015747,2]
[366225291,1750135840548,-150.0,0.00015793,2]
[366225292,1750135840559,-218.0,0.0001581,2]
[366225293,1750135840569,-150.0,0.00015839,2]
[366225295,1750135840578,-150.0,0.00015854,2]
[366225296,1750135840588,-150.0,0.00015884,2]
[366225297,1750135840598,-150.0,0.0001593,2]
[366225298,1750135840608,-150.0,0.00015976,2]
[366225300,1750135840617,-461.43,0.00016,2]
[366225301,1750135840627,-1169.7885028,0.00016,2]
[366225302,1750135840637,-1169.7885028,0.00016,2]
[366225303,1750135840647,-1169.7885028,0.00016,2]
[366225304,1750135840657,-1169.7885028,0.00016003,2]
[366225305,1750135840667,-202.69120237,0.0001602,2]
[366225306,1750135840676,-150.0,0.00016022,2]
[366225307,1750135840687,-207.4,0.0001603,2]
[366225308,1750135840696,-1169.7885028,0.00016038,2]
[366225309,1750135840707,-218.0,0.0001604,2]
[366225310,1750135840717,-150.0,0.00016068,2]
[366225311,1750135840726,-1169.7885028,0.00016072,2]
[366225312,1750135840736,-200.0,0.00016074,3]
[366225313,1750135840746,-1169.7885028,0.00016107,2]
[366225314,1750135840756,-150.0,0.00016114,2]
[366225315,1750135840766,-150.0,0.00016137,2]
[366225316,1750135840775,-1169.7885028,0.00016141,2]
[366225317,1750135840785,-150.0,0.0001616,2]
[366225318,1750135840795,-500.0,0.00016164,2]
[366225319,1750135840805,-1169.7885028,0.00016176,2]
[366225320,1750135840815,-167.08,0.00016199,2]
[366225321,1750135840825,-150.0,0.00016206,2]
[366225322,1750135840835,-1169.7885028,0.0001621,2]
[366225323,1750135840845,-1169.7885028,0.00016245,2]
[366225324,1750135840855,-150.0,0.00016252,2]
[366225325,1750135840866,-218.0,0.0001627,2]
[366225326,1750135840876,-1169.7885028,0.00016279,2]
[366225327,1750135840886,-150.0,0.00016298,2]
[366225328,1750135840896,-77389.17655601,0.000163,2]
[366225329,1750135840906,-167.95067508,0.000163,2]
[366225330,1750135840915,-1169.7885028,0.00016314,2]
[366225331,1750135840927,-154.02835638,0.00016317,2]
[366225332,1750135840937,-150.0,0.00016344,2]
[366225333,1750135840947,-1169.7885028,0.00016348,2]
[366225334,1750135840957,-1169.7885028,0.00016383,2]
[366225335,1750135840967,-150.0,0.00016389,2]
[366225336,1750135840977,-151.0,0.0001639,2]
[366225337,1750135840986,-237.935,0.00016399,2]
[366225338,1750135840996,-490.0,0.00016399,2]
[366225339,1750135841006,-490.0,0.00016399,2]
[366225340,1750135841016,-490.0,0.00016399,2]
[366225341,1750135841025,-490.0,0.00016399,2]
[366225342,1750135841035,-490.0,0.00016399,2]
[366225343,1750135841045,-490.39532986,0.00016399,2]
[366225344,1750135841054,-490.0,0.00016399,2]
[366225345,1750135841064,-490.0,0.00016399,2]
[366225346,1750135841073,-490.0,0.00016399,2]
[366225347,1750135841083,-492.10592039,0.00016399,2]
[366225348,1750135841092,-490.0,0.00016399,2]
[366225349,1750135841102,-490.0,0.00016399,2]
[366225350,1750135841112,-490.0,0.00016399,2]
[366225351,1750135841122,-490.0,0.00016399,2]
[366225352,1750135841132,-490.0,0.00016399,2]
[366225353,1750135841141,-490.0,0.00016399,2]
[366225354,1750135841151,-628.32799394,0.00016399,2]
[366225355,1750135841160,-490.0,0.00016399,2]
[366225356,1750135841170,-494.25961668,0.00016399,2]
[366225357,1750135841180,-168.28827295,0.000164,2]
[366225358,1750135841190,-217590.8683198,0.000164,2]
[366225364,1750135843479,-309.94,0.00016399,2]
[366225366,1750135846292,-180.06,0.00016399,2]
[366225367,1750135846302,-129.73255132,0.00016399,2]
[366225368,1750135846343,-360.26744868,0.00016399,2]
[366225369,1750135846354,-457.30796309,0.000164,2]
[366225370,1750135846370,-9937.93255687,0.000164,2]
[366225371,1750135846381,-56532.44563248,0.000164,2]
[366225372,1750135846391,-1169.7885028,0.00016417,2]
[366225373,1750135846401,-150.0,0.0001642,2]
[366225374,1750135846410,-150.0,0.00016435,2]
[366225375,1750135846422,-1169.7885028,0.00016452,2]
[366225376,1750135846431,-27755.0,0.00016463,7]
[366225377,1750135846443,-150.0,0.00016481,2]
[366225378,1750135846453,-1169.7885028,0.00016486,2]
[366225379,1750135846463,-233.0,0.0001649,2]
[366225380,1750135846474,-952.22,0.000165,2]
[366225381,1750135846484,-218.0,0.000165,2]
[366225382,1750135846494,-154.02835638,0.00016511,2]
[366225383,1750135846504,-1169.7885028,0.00016521,2]
[366225384,1750135846514,-150.0,0.00016527,2]
[366225385,1750135846524,-1169.7885028,0.00016555,2]
[366225386,1750135846533,-2500.0,0.00016558,2]
[366225387,1750135846543,-200.0,0.00016562,4]
[366225388,1750135846553,-490.0,0.00016563,2]
[366225389,1750135846563,-490.0,0.00016563,2]
[366225390,1750135846572,-490.0,0.00016563,2]
[366225391,1750135846582,-490.0,0.00016563,2]
[366225392,1750135846593,-227.59,0.00016563,2]
[366225393,1750135846602,-578.49,0.00016563,2]
[366225394,1750135846612,-490.0,0.00016563,2]
[366225395,1750135846621,-490.0,0.00016563,2]
[366225396,1750135846631,-167.82,0.00016563,2]
[366225397,1750135846640,-490.0,0.00016563,2]
[366225398,1750135846649,-490.0,0.00016563,2]
[366225399,1750135846658,-490.0,0.00016563,2]
[366225400,1750135846668,-455.86,0.00016563,2]
[366225401,1750135846677,-490.0,0.00016563,2]
[366225402,1750135846688,-490.0,0.00016563,2]
[366225403,1750135846698,-150.0,0.00016573,2]
[366225404,1750135846707,-1169.7885028,0.0001659,2]
[366225405,1750135846717,-933.01,0.000166,2]
[366225406,1750135846726,-1776.92,0.000166,2]
[366225407,1750135846735,-889.0,0.000166,3]
[366225408,1750135846745,-1000.0,0.000166,2]
[366225409,1750135846755,-1000.0,0.000166,2]
[366225410,1750135846765,-1000.0,0.000166,2]
[366225411,1750135846774,-1000.0,0.000166,2]
[366225412,1750135846784,-1000.0,0.000166,2]